[Event "56th Biel GMT Classical 2023"]
[White "Erigaisi Arjun"]
[Black "Moussard,Jules"]
[Site "Biel"]
[Round "5.4"]
[Annotator "TA"]
[Result "1/2-1/2"]
[Date "2023.07.24"]
[WhiteElo "2710"]
[BlackElo "2654"]
[PlyCount "86"]
[TimeControl "60"]

{[%evp 12,86,27,12,25,22,22,26,22,25,41,35,34,14,23,0,21,0,0,0,0,-34,-31,-29,-30,-25,-39,-33,-17,-15,-16,-13,-11,-14,-13,-25,-7,-19,-12,-13,-9,-10,-10,-14,0,-25,-12,-22,-15,-15,-12,-25,-9,-11,-9,-16,-2,-3,-2,-2,-2,-3,0,-11,0,0,0,0,0,0,0,-8,0,0,0,0,0]} 1. d4 {[%emt 0:0:6]} Nf6 {[%emt 0:0:36]} 2. c4 {[%emt 0:0:7]} e6 {[%emt 0:0:5]} 3. Nc3 {[%emt 0:0:5]} d5 {[%emt 0:0:6]} 4. cxd5 {[%emt 0:0:4]} exd5 {[%emt 0:0:6]} 5. Bg5 {[%emt 0:0:5]} Be7 {[%emt 0:0:21]} 6. e3 {[%emt 0:0:7]} h6 {[%emt 0:0:5]} 7. Bh4 {[%emt 0:0:4]} Bg4 {[%emt 0:0:14] D35: Queen's Gambit Declined: Exchange Variation.} 8. f3 {[%emt 0:4:4]} Be6 {[%emt 0:0:49]} 9. Bd3 {[%emt 0:0:8]} O-O {[%emt 0:0:59] White has an edge.} 10. Nge2 {[%emt 0:0:6]} c5 {[%emt 0:0:26]} 11. O-O {[%emt 0:0:8]} Nc6 {[%emt 0:0:46][%cal Bb8c6,Bc6a5,Ba5c4,Bc4e3][%mdl 32] [#]} 12. Kh1 $146 {[%emt 0:2:48]} ({Predecessor:} 12. Rc1 cxd4 13. exd4 Rc8 14. Kh1 Qd7 15. Na4 b6 16. Ba6 Rc7 17. Bb5 Rfc8 18. Ba6 {½-½ David,A (2540)-Parligras,M (2556) FRA-chT Top 16 Gp Haute 2023 (2.3)} )cxd4 {[%emt 0:17:23]} 13. exd4 {[%emt 0:0:6]} Qd7 {[%emt 0:3:2]} 14. Qb3 {[%emt 0:11:22]} Rfe8 {[%emt 0:9:47][%cal Of6e4]} 15. Rad1 {[%emt 0:10:59]} Rac8 {[%emt 0:2:17]} 16. a3 {[%emt 0:10:57]} Na5 {[%emt 0:3:41]} 17. Qa2 {[%emt 0:1:55]} Nc4 {[%emt 0:5:7]} 18. Nf4 {[%emt 0:1:47]} Ne3 {[%emt 0:14:3][%csl LRd1,LRf1]} (18... g5 {simplifies} 19. Bxc4 dxc4 20. Nxe6 gxh4 21. Nc5 Bxc5 22. dxc5 Qe6 )19. Bb5 {[%emt 0:0:24]} Rc6 {[%emt 0:3:35][%cal Of6h5]} (19... Qc7 $5 20. Nxe6 fxe6 $11 )20. Nxe6 {[%emt 0:3:24] [#] Nc5 is the strong threat.} Nxd1 {[%emt 0:5:35]} 21. Rxd1 {[%emt 0:0:34] Hoping for Nc5.} Qxe6 {[%emt 0:3:9]} 22. Re1 {[%emt 0:0:49]} Qd7 {[%emt 0:1:43]} 23. Qb1 {[%emt 0:3:16]} Bd8 {[%emt 0:4:46]} 24. Bg3 {[%emt 0:4:49]} (24. Bxc6 {simplifies} Rxe1+ 25. Qxe1 bxc6 26. Na4 )Ba5 {[%emt 0:7:21]} 25. Bxc6 {[%emt 0:3:15]} Qxc6 {[%emt 0:4:11]} 26. Rxe8+ {[%emt 0:2:0]} Nxe8 {[%emt 0:0:5]} 27. Ne2 {[%emt 0:2:20]} Bc7 {[%emt 0:0:55]} 28. Qc1 {[%emt 0:0:51]} Qxc1+ {[%emt 0:2:55]} 29. Nxc1 {[%emt 0:0:4]} Bxg3 {[%emt 0:2:35]} 30. hxg3 $11 {[%emt 0:0:4][%mdl 4096] Endgame KN-KN} h5 {[%emt 0:0:13]} 31. Kg1 {[%emt 0:4:34]} g6 {[%emt 0:0:34]} 32. Nd3 {[%emt 0:0:27] The position is equal.} Kf8 {[%emt 0:0:28]} 33. Nf4 {[%emt 0:0:18]} Nc7 {[%emt 0:0:22]} 34. Kf2 {[%emt 0:0:5]} Ke7 {[%emt 0:0:11]} 35. Ke3 {[%emt 0:0:4]} Kd6 {[%emt 0:0:15]} 36. Nd3 {[%emt 0:0:34]} g5 {[%emt 0:1:59]} 37. g4 {[%emt 0:17:5]} h4 {[%emt 0:3:31]} 38. f4 {[%emt 0:3:19]} f6 $1 {[%emt 0:0:8]} 39. fxg5 {[%emt 0:3:26]} fxg5 {[%emt 0:0:6]} 40. Ne5 {[%emt 0:0:0]} Ne6 {[%emt 0:0:0]} 41. a4 {[%emt 0:3:16]} a5 {[%emt 0:3:41]} 42. Nf3 {[%emt 0:3:16]} Ke7 {[%emt 0:0:54]} 43. Kf2 {[%emt 0:1:53]} Kf6 {[%emt 0:1:0] Weighted Error Value: White=0.06 (flawless) /Black=0.05 (flawless)} 1/2-1/2

[Event "56th Biel GMT Classical 2023"]
[White "Le,Quang Liem"]
[Black "Moussard,Jules"]
[Site "Biel"]
[Round "6.1"]
[Annotator "TA"]
[Result "1/2-1/2"]
[Date "2023.07.25"]
[WhiteElo "2728"]
[BlackElo "2654"]
[PlyCount "162"]
[TimeControl "60"]

{[%evp 19,162,5,12,3,13,13,14,16,1,0,0,0,0,0,0,0,0,0,17,17,24,19,30,31,29,16,120,110,121,72,72,82,70,81,70,67,76,90,93,87,104,80,73,74,77,84,82,79,92,92,102,95,99,103,104,106,102,102,139,124,140,80,138,134,127,132,158,150,146,129,136,107,166,141,178,106,104,106,105,102,97,104,100,91,92,23,91,91,111,69,76,76,85,77,88,75,72,77,83,58,85,45,40,0,0,0,0,0,0,0,0,0,0,0,0,0,0,0,0,0,0,0,0,0,0,0,0,0,0,0,0,0,0,0,0,0,0,0,0,0,0,0,0,0,0]} 1. d4 {[%emt 0:0:3]} Nf6 {[%emt 0:0:9]} 2. Nf3 {[%emt 0:0:11]} e6 {[%emt 0:0:7]} 3. c4 {[%emt 0:0:10]} b6 {[%emt 0:0:9]} 4. g3 {[%emt 0:0:17]} Ba6 {[%emt 0:0:19]} 5. b3 {[%emt 0:0:39]} Bb4+ {[%emt 0:0:22]} 6. Bd2 {[%emt 0:0:12]} Be7 {[%emt 0:0:12]} 7. Nc3 {[%emt 0:1:9]} d5 {[%emt 0:0:12]} 8. cxd5 {[%emt 0:0:44]} exd5 {[%emt 0:0:7]} 9. Bg2 {[%emt 0:0:43]} O-O {[%emt 0:0:46]} 10. O-O {[%emt 0:0:12]} Re8 {[%emt 0:0:59]} 11. Qc2 {[%emt 0:6:0]} Nbd7 {[%emt 0:14:17]} 12. Ne5 {[%emt 0:4:41]} Bb7 {[%emt 0:0:42]} 13. Rad1 {[%emt 0:2:7]} h6 {[%emt 0:10:23]} 14. Bc1 {[%emt 0:10:29]} (14. Nb5 {looks sharper.} c5 15. Bf4 cxd4 16. Qc7 )Bd6 {[%emt 0:23:21]} 15. Nc4 {[%emt 0:3:48]} Bb4 {[%emt 0:6:14]} 16. Ne3 {[%emt 0:0:17][%cal Re3d5]} c6 {[%emt 0:5:29]} 17. a3 {[%emt 0:0:43]} Bf8 {[%emt 0:0:5]} 18. Nf5 {[%emt 0:0:14]} Re6 {[%emt 0:3:37]} 19. Rfe1 {[%emt 0:2:46]} Qe8 {[%emt 0:4:54]} 20. Bh3 {[%emt 0:7:37]} c5 {[%emt 0:4:17]} 21. Nb5 {[%emt 0:2:24]} Rc6 {[%emt 0:2:2] Wards off Nc7} 22. Bf4 {[%emt 0:1:51]} Qd8 {[%emt 0:3:8]} (22... Ne4 $1 $11 {remains equal.} )23. Nbd6 $16 {[%emt 0:9:2]} cxd4 {[%emt 0:4:10]} 24. Qd3 {[%emt 0:3:32]} ({Much less strong is} 24. Nxb7 $6 Rxc2 25. Nxd8 Rxd8 $14 )({Better is} 24. Qb1 Ba6 25. Nxf7 (25. Nxd4 $2 Rxd6 26. Bg2 Nc5 $19 )(25. Rxd4 g5 $15 )Kxf7 26. Nxd4 )Bxd6 {[%emt 0:11:52]} 25. Nxd6 {[%emt 0:1:5]} Nc5 {[%emt 0:0:40][%csl LRd3,LRd6]} 26. Nxb7 $1 {[%emt 0:0:11]} (26. Qxd4 $2 {too greedy.} Rxd6 27. Bxd6 Qxd6 $19 )Nxb7 {[%emt 0:0:2]} 27. Qxd4 {[%emt 0:2:5]} Qe7 {[%emt 0:0:31]} 28. b4 {[%emt 0:12:54]} Re8 {[%emt 0:2:38]} 29. Bg2 {[%emt 0:3:10]} Re6 {[%emt 0:2:57]} 30. Bf3 {[%emt 0:5:10]} Nd6 {[%emt 0:5:42]} 31. Bxd5 {[%emt 0:0:58]} Nxd5 {[%emt 0:2:35]} 32. Qxd5 {[%emt 0:0:10][%cal Rf4d6]} Ne4 {[%emt 0:0:8] aiming for ...Nc3.} 33. Qd3 {[%emt 0:4:18] Dodges Nc3} Nf6 {[%emt 0:0:28][%cal Re6e2]} 34. Rd2 {[%emt 0:1:32]} a5 {[%emt 0:1:14]} 35. bxa5 {[%emt 0:2:47]} bxa5 {[%emt 0:0:2]} 36. Rc2 {[%emt 0:0:48]} Qb7 {[%emt 0:1:25]} 37. Rd1 {[%emt 0:0:48]} R6e7 {[%emt 0:1:10]} 38. Qf3 {[%emt 0:2:57]} Ne4 {[%emt 0:1:11]} 39. Rdc1 {[%emt 0:0:14]} Qb5 {[%emt 0:0:14]} 40. Be3 {[%emt 0:0:0]} (40. Kg2 $142 )Qd5 {[%emt 0:0:0] [#]} ({Black should try} 40... Qa4 )41. Rc5 $1 {[%emt 0:9:3][%mdl 512]} Qd8 {[%emt 0:3:32]} 42. Rb5 {[%emt 0:8:36]} Re6 {[%emt 0:3:59]} 43. Rf5 {[%emt 0:6:24]} Rf6 {[%emt 0:4:46]} 44. Rxf6 {[%emt 0:0:41]} Nxf6 {[%emt 0:0:13]} 45. Qc6 {[%emt 0:5:27]} Qe7 {[%emt 0:8:33]} (45... Qd5 $16 {was called for.} 46. Qxd5 Nxd5 )46. a4 {[%emt 0:11:8]} Qa3 {[%emt 0:19:54]} 47. Rc3 {[%emt 0:4:28]} (47. Bd4 $18 Rxe2 48. Bxf6 gxf6 49. Qc8+ Kh7 50. Qf5+ Kg7 51. Qg4+ Kf8 52. Rc8+ Re8 53. Rxe8+ Kxe8 54. Qc8+ Ke7 55. Qc7+ Kf8 56. Qxa5 )Qb4 {[%emt 0:3:7]} 48. Rc2 {[%emt 0:9:13]} Re4 {[%emt 0:3:59]} 49. Qb5 {[%emt 0:1:12]} Qxb5 {[%emt 0:3:8]} 50. axb5 {[%emt 0:0:2][%mdl 4096] Endgame Black must now prevent Bd2. KRB-KRN} Rb4 {[%emt 0:0:15]} 51. b6 {[%emt 0:3:15]} Nd5 {[%emt 0:0:33]} 52. Rc8+ {[%emt 0:0:51]} Kh7 {[%emt 0:0:2] [#]} 53. Bc5 $1 {[%emt 0:0:12]} Nxb6 {[%emt 0:0:58]} 54. Rc7 {[%emt 0:0:59]} Rb1+ {[%emt 0:0:41]} 55. Kg2 {[%emt 0:0:2][%cal Oc7b7] And now Rb7! would win.} Na4 {[%emt 0:0:33]} 56. Bd4 {[%emt 0:0:10]} Kg8 {[%emt 0:0:37]} 57. e3 {[%emt 0:1:7]} Rb4 {[%emt 0:1:52]} 58. Rc8+ {[%emt 0:2:23]} Kh7 {[%emt 0:0:1]} 59. Rf8 {[%emt 0:0:13]} Rb7 {[%emt 0:0:20]} 60. g4 {[%emt 0:0:0]} Nb6 {[%emt 0:0:0]} 61. Bxb6 {[%emt 0:2:21]} Rxb6 {[%emt 0:3:12]} 62. Rxf7 $14 {[%emt 0:4:9] Hoping for Ra7. KR-KR} Ra6 $1 {[%emt 0:0:2] Prevents Ra7} 63. Rc7 {[%emt 0:0:19]} a4 {[%emt 0:0:2]} 64. Rc2 {[%emt 0:0:13]} a3 {[%emt 0:0:1] Strongly threatening ...a2.} 65. Ra2 {[%emt 0:0:11]} g5 {[%emt 0:2:11]} 66. Kf1 {[%emt 0:3:39]} Kg6 {[%emt 0:0:18]} 67. Ke2 {[%emt 0:0:14]} h5 {[%emt 0:5:13]} 68. h3 {[%emt 0:1:25]} hxg4 {[%emt 0:1:0]} 69. hxg4 {[%emt 0:0:1]} Kf6 {[%emt 0:0:39]} 70. Kd3 {[%emt 0:0:15]} Ke5 {[%emt 0:0:24]} 71. f3 {[%emt 0:0:15]} Ra8 {[%emt 0:4:49]} 72. Kc4 {[%emt 0:0:28]} Rc8+ {[%emt 0:0:44]} 73. Kb3 {[%emt 0:0:54]} Rf8 {[%emt 0:0:7]} 74. Rf2 {[%emt 0:0:30]} ({Reject} 74. Kxa3 Rxf3 75. Kb4 Rxe3 $17 )Ra8 {[%emt 0:1:12]} 75. Ka2 {[%emt 0:3:31]} Rd8 {[%emt 0:3:25]} 76. Rh2 {[%emt 0:0:26]} Rd3 {[%emt 0:0:59]} 77. Rh5 {[%emt 0:0:26]} Kf6 {[%emt 0:1:4]} 78. f4 {[%emt 0:0:7]} Rxe3 {[%emt 0:0:17]} 79. Rxg5 {[%emt 0:0:8]} Rg3 {[%emt 0:0:28]} 80. Rf5+ {[%emt 0:0:11]} Kg6 {[%emt 0:0:4]} 81. Rg5+ {[%emt 0:0:19]} Kf6 {[%emt 0:0:3]} 1/2-1/2

[Event "56th Biel GMT Classical 2023"]
[White "Deac,Bogdan-Daniel"]
[Black "Erigaisi Arjun"]
[Site "Biel"]
[Round "6.2"]
[Annotator "TA"]
[Result "1/2-1/2"]
[Date "2023.07.25"]
[WhiteElo "2693"]
[BlackElo "2710"]
[PlyCount "96"]
[TimeControl "60"]

{[%evp 9,96,10,18,0,24,-22,-20,-31,-29,-24,-27,-25,-28,-35,-22,-33,-28,-35,-8,-37,-33,-33,-29,-33,-32,-29,-27,-33,-38,-31,12,-20,-13,-21,-21,-26,-31,-21,-26,-27,-14,-14,-17,-34,0,0,-5,-22,-7,-10,-6,-12,0,-13,-16,-15,-4,-8,-8,-8,-2,-2,0,-2,-8,-10,-10,-10,0,-8,-8,-8,-8,-8,-8,-8,-8,-8,0,0,0,0,0,0,0,0,0,0,0]} 1. Nf3 {[%emt 0:0:29]} d5 {[%emt 0:0:13]} 2. g3 {[%emt 0:0:32]} Nf6 {[%emt 0:0:43]} 3. Bg2 {[%emt 0:2:27]} c5 {[%emt 0:0:6]} 4. O-O {[%emt 0:0:21]} g6 {[%emt 0:0:6]} 5. c4 {[%emt 0:3:34]} Bg7 {[%emt 0:0:27]} 6. Qa4+ {[%emt 0:5:10] A08: King's Indian Attack.} Nc6 {[%emt 0:0:31][%cal Bb8c6,Bc6d4,Bd4f3][%mdl 32] [#]} 7. d3 $146 {[%emt 0:6:57]} (7. Ne5 {deserves consideration.} )({Predecessor:} 7. Ne5 Qd6 8. Nxc6 bxc6 9. cxd5 Nxd5 10. Nc3 O-O 11. Ne4 Qc7 12. Nxc5 Rb8 13. Rb1 {0-1 Rapport,R (2752)-Caruana,F (2782) Zagreb SuperUnited Blitz 2023 (9)} )O-O $11 {[%emt 0:1:29]} 8. Bd2 {[%emt 0:3:4]} Bd7 {[%emt 0:14:36]} 9. cxd5 {[%emt 0:10:6]} Nxd5 {[%emt 0:0:34]} 10. Nc3 {[%emt 0:0:19]} Nd4 {[%emt 0:1:39]} 11. Qd1 {[%emt 0:0:38]} Nxf3+ {[%emt 0:2:25]} 12. Bxf3 {[%emt 0:1:22]} Bc6 {[%emt 0:0:5]} 13. Bg2 {[%emt 0:2:54]} Nb4 {[%emt 0:4:12]} 14. a3 {[%emt 0:2:28]} Bxg2 {[%emt 0:0:7]} 15. Kxg2 {[%emt 0:0:1]} Nc6 {[%emt 0:0:11]} 16. Rb1 {[%emt 0:0:15]} Rc8 {[%emt 0:3:57]} 17. Qa4 {[%emt 0:6:51]} b6 {[%emt 0:0:48]} 18. Rfc1 {[%emt 0:1:27]} Qd7 {[%emt 0:1:26]} 19. Be3 {[%emt 0:0:21]} h5 {[%emt 0:10:4]} 20. Ne4 {[%emt 0:11:31][%cal Bc3e4,Be4d2,Bd2f3][%mdl 32]} Qb7 {[%emt 0:2:55]} 21. Kg1 {[%emt 0:1:43]} (21. b4 {is more complex.} f5 22. Ng5 Nxb4+ 23. f3 )Rfd8 {[%emt 0:4:46]} 22. Nd2 {[%emt 0:3:54]} Nd4 {[%emt 0:4:26]} 23. Bxd4 {[%emt 0:0:1]} Rxd4 {[%emt 0:0:9]} 24. Qd1 {[%emt 0:0:4]} h4 {[%emt 0:10:9]} 25. Nf3 {[%emt 0:1:28]} hxg3 {[%emt 0:2:37]} 26. hxg3 {[%emt 0:3:43]} Rdd8 {[%emt 0:4:38][%cal Oc5c4]} (26... Rd5 $5 {[%cal Rc5c4]} )27. Qa4 {[%emt 0:13:25] The position is equal.} Bf6 {[%emt 0:6:14]} 28. b4 {[%emt 0:1:10]} cxb4 {[%emt 0:2:27]} (28... b5 {simplifies} 29. Qa5 Rd5 30. bxc5 Rdxc5 31. Rxc5 Rxc5 32. a4 a6 )29. Qxb4 {[%emt 0:6:58]} Kg7 {[%emt 0:0:18]} (29... Rxc1+ {simplifies} 30. Rxc1 Rc8 31. Rxc8+ Qxc8 32. a4 Qc2 )30. Kg2 {[%emt 0:4:45]} Rh8 {[%emt 0:2:0]} (30... Rxc1 {simplifies} 31. Rxc1 b5 32. a4 a6 )31. Rh1 ({Of course not} 31. Kg1 a5 32. Qa4 Rxc1+ 33. Rxc1 Qd5 $17 )Rxh1 {[%emt 0:1:23]} 32. Rxh1 {[%emt 0:2:43]} Rh8 {[%emt 0:0:5]} (32... e5 {seems wilder.} 33. Qg4 b5 34. Qh3 a6 )33. Rxh8 {[%emt 0:0:57]} (33. Rc1 {feels hotter.} b5 34. g4 a6 35. a4 )Kxh8 {[%emt 0:0:5][%mdl 4096] Endgame KQB-KQN} 34. a4 {[%emt 0:4:20]} Kg8 {[%emt 0:1:48]} 35. Kg1 {[%emt 0:3:41]} e6 {[%emt 0:4:3]} 36. Nd2 {[%emt 0:4:16]} a6 {[%emt 0:3:42]} 37. Nc4 {[%emt 0:0:42]} b5 {[%emt 0:2:4]} 38. axb5 {[%emt 0:0:33] [#] Strongly threatening b6.} Qxb5 {[%emt 0:0:6]} 39. Qxb5 {[%emt 0:2:1]} axb5 {[%emt 0:0:5] KB-KN} 40. Nd2 {[%emt 0:0:0]} Bc3 {[%emt 0:0:0]} 41. Nb3 {[%emt 0:0:42]} f5 {[%emt 0:2:48]} 42. Kg2 {[%emt 0:1:4]} Kf7 {[%emt 0:0:19]} 43. Kf3 {[%emt 0:3:57]} e5 {[%emt 0:0:47]} 44. g4 {[%emt 0:7:18]} Ke6 {[%emt 0:1:36]} 45. gxf5+ {[%emt 0:2:37]} Kxf5 {[%emt 0:0:8]} 46. e4+ {[%emt 0:2:37]} Kg5 {[%emt 0:0:10]} 47. Ke2 {[%emt 0:1:6]} b4 {[%emt 0:1:48]} 48. f3 $1 {[%emt 0:0:34]} Kf6 {[%emt 0:1:27] Weighted Error Value: White=0.05 (flawless) /Black=0.05 (flawless)} 1/2-1/2

[Event "56th Biel GMT Classical 2023"]
[White "Keymer,Vincent"]
[Black "Amin,Bassem"]
[Site "Biel"]
[Round "6.3"]
[Annotator "TA"]
[Result "1-0"]
[Date "2023.07.25"]
[WhiteElo "2690"]
[BlackElo "2694"]
[PlyCount "139"]
[TimeControl "60"]

{[%evp 9,139,17,19,17,13,11,15,10,18,16,34,7,21,20,35,31,42,38,57,36,31,26,35,38,30,27,41,31,82,107,105,108,114,115,157,161,176,164,176,197,229,231,228,229,352,362,328,320,310,315,332,214,222,220,229,227,238,183,174,173,191,184,170,159,157,181,177,143,151,134,251,244,235,229,221,124,125,122,135,128,132,136,122,133,135,127,148,139,151,167,194,196,186,178,179,177,211,211,302,302,301,295,293,264,262,140,893,865,833,834,697,628,29962,29963,6318,5163,29972,29973,29977,29978,29978,29979,29979,29980,29980,29981,29982,29983,29983,29984,29983,29984]} 1. d4 {[%emt 0:0:3]} Nf6 {[%emt 0:0:51]} 2. Nf3 {[%emt 0:0:7]} g6 {[%emt 0:0:29]} 3. Nbd2 {[%emt 0:0:5]} Bg7 {[%emt 0:3:21]} 4. e4 {[%emt 0:0:5]} d6 {[%emt 0:0:5]} 5. Bb5+ {[%emt 0:0:4]} c6 {[%emt 0:0:10]} 6. Bc4 {[%emt 0:0:4] B07: Pirc Defence: Miscellaneous Systems.} O-O {[%emt 0:1:15][%cal Of6e4]} 7. O-O {[%emt 0:0:5]} d5 {[%emt 0:2:43]} 8. exd5 {[%emt 0:0:5] The position is equal.} cxd5 {[%emt 0:1:47] [#]} 9. Bb3 $146 {[%emt 0:0:6]} ({Predecessor:} 9. Bd3 Nc6 10. c3 e5 11. Nxe5 Nxe5 12. dxe5 Ng4 13. Nf3 Nxe5 14. Nxe5 Bxe5 15. Re1 Bc7 16. Be3 {½-½ Bona,S-Carruana Fuentes,R ESP-chT corr 1993} )Nc6 {[%emt 0:0:32]} 10. c3 {[%emt 0:0:9]} Bf5 {[%emt 0:12:11]} 11. Re1 {[%emt 0:4:14]} Qc7 {[%emt 0:19:51]} 12. Nf1 {[%emt 0:9:14]} Rad8 {[%emt 0:0:40]} 13. Ng3 {[%emt 0:14:22]} Bc8 {[%emt 0:8:17]} 14. Qe2 {[%emt 0:2:2]} e6 {[%emt 0:5:36]} 15. h3 {[%emt 0:11:5]} Na5 {[%emt 0:0:56]} 16. Ne5 {[%emt 0:4:8]} Nd7 {[%emt 0:2:25]} 17. Nd3 {[%emt 0:2:15]} Nxb3 {[%emt 0:7:19]} 18. axb3 {[%emt 0:0:5]} a5 {[%emt 0:0:13]} ({Black should try} 18... a6 $14 )19. Bf4 $16 {[%emt 0:7:0]} Qb6 {[%emt 0:0:5]} 20. Ra3 {[%emt 0:7:20] White is more active.} Rfe8 {[%emt 0:14:19]} 21. Rea1 {[%emt 0:3:9]} e5 {[%emt 0:4:47]} 22. dxe5 {[%emt 0:1:39]} (22. Bxe5 $2 f6 23. Nf4 Qc6 24. Rxa5 b6 $19 )d4 {[%emt 0:2:42]} 23. Rxa5 {[%emt 0:4:47] And now cxd4 would win.} dxc3 {[%emt 0:0:48]} 24. bxc3 {[%emt 0:1:15]} Qxb3 {[%emt 0:0:7][%cal Od7b6] Black is weak on the dark squares} 25. Ne4 {[%emt 0:0:41]} h6 {[%emt 0:11:6]} 26. Nd6 {[%emt 0:16:11]} Re7 {[%emt 0:0:9]} (26... Qxc3 $142 27. Nxe8 Rxe8 )27. c4 $18 {[%emt 0:1:2]} Nf8 {[%emt 0:2:44][%cal Bd7f8,Bf8e6,Be6d4,Bd4e2][%mdl 32]} 28. Qd2 {[%emt 0:4:19] Rb5 is the strong threat.} Bf5 {[%emt 0:3:22]} 29. Nc5 {[%emt 0:1:8]} Qc2 {[%emt 0:0:2]} 30. Qxc2 {[%emt 0:1:23]} (30. Bxh6 Qxd2 31. Bxd2 Bxe5 32. Ncxb7 (32. Nxf5 gxf5 33. Bg5 f6 $17 )Rxd6 33. Nxd6 Bxd6 $16 )Bxc2 {[%emt 0:0:1]} 31. Ncxb7 {[%emt 0:0:41] A dynamic duo of knights.} ({Much less strong is} 31. Ndxb7 Rd4 )Rb8 {[%emt 0:0:1] [#]} 32. Rc1 $1 {[%emt 0:0:33]} Ne6 {[%emt 0:1:6]} 33. Bg3 {[%emt 0:5:1]} Nd4 {[%emt 0:1:10] aiming for ...Ne2+.} 34. Kh2 {[%emt 0:5:37]} Bf5 {[%emt 0:0:6]} (34... Rbxb7 $2 35. Nxb7 (35. Rd5 Rb1 $16 )Be4 36. Nc5 $18 )35. Rd1 {[%emt 0:0:58]} Ne2 {[%emt 0:0:26] [#]} 36. Nd8 {[%emt 0:2:53][%mdl 512]} Rxd8 {[%emt 0:4:15]} (36... Rd7 37. Nc6 )37. Nxf5 {[%emt 0:0:5][%mdl 64] Discovered Attack} Rxd1 {[%emt 0:0:10]} 38. Nxe7+ {[%emt 0:0:3]} Kh7 {[%emt 0:0:4]} 39. Nc8 {[%emt 0:3:38]} Nxg3 {[%emt 0:3:1]} (39... Re1 $16 40. Ra7 Nxg3 {[%mdl 64] Remove Defender} 41. Kxg3 Bxe5+ 42. f4 Re3+ 43. Kf2 Bd4 44. Rxf7+ Kg8 )40. Kxg3 $16 {[%emt 0:0:0][%mdl 4096] Endgame KRB-KRN} ({Not} 40. fxg3 Re1 $14 )Rd3+ {[%emt 0:0:0]} 41. f3 {[%emt 0:7:29]} g5 {[%emt 0:3:59]} 42. Ne7 {[%emt 0:8:30]} (42. Kf2 $18 )Rd4 {[%emt 0:3:20]} 43. Rc5 {[%emt 0:2:52]} Bf8 {[%emt 0:0:25]} 44. Rc7 {[%emt 0:0:6] Nf5 would be deadly.} Bg7 {[%emt 0:0:7] [#]} 45. Kf2 $1 {[%emt 0:9:28] Black must now prevent Nf5.} Bxe5 {[%emt 0:3:50]} 46. Ke3 $1 {[%emt 0:3:48]} Rd1 {[%emt 0:6:13]} 47. Rb7 {[%emt 0:0:24]} Bf4+ {[%emt 0:9:21]} 48. Ke4 {[%emt 0:1:5]} Re1+ {[%emt 0:0:15]} 49. Kd5 {[%emt 0:11:56]} h5 {[%emt 0:1:15]} 50. c5 {[%emt 0:1:18]} h4 {[%emt 0:1:28]} 51. Nc6 {[%emt 0:2:6]} Kg6 {[%emt 0:2:8]} 52. Nd4 {[%emt 0:0:38] Dodges Re2} Rd1 {[%emt 0:0:38]} 53. c6 {[%emt 0:0:36] Hoping for c7.} Rd2 {[%emt 0:0:16]} (53... Be3 {was called for.} 54. Rb4 Bf4 )54. c7 $18 {[%emt 0:2:39]} Bxc7 {[%emt 0:0:10]} 55. Rxc7 {[%emt 0:0:3]} Rxg2 {[%emt 0:0:3] KRN-KR} 56. Rc6+ {[%emt 0:2:38]} f6 {[%emt 0:1:4]} 57. Ke6 {[%emt 0:0:3]} (57. f4 $18 )g4 $2 {[%emt 0:2:54][%mdl 8192] Black cannot hold the game after this.} (57... Rd2 $16 58. Rd6 Ra2 )58. hxg4 {[%emt 0:2:20] Ke7 would kill now.} h3 {[%emt 0:1:41]} 59. Rc8 {[%emt 0:0:0] White threatens Rg8+ and mate.} h2 {[%emt 0:0:0]} 60. Rh8 {[%emt 0:0:0]} Kg5 {[%emt 0:0:0]} 61. Kf7 {[%emt 0:6:55][%cal Rd4e6]} Kf4 {[%emt 0:2:30]} 62. Rh3 {[%emt 0:0:38]} Ke3 {[%emt 0:14:3]} 63. Nf5+ {[%emt 0:0:15] White mates.} Kf2 {[%emt 0:0:16]} 64. Kxf6 {[%emt 0:0:6]} Kg1 {[%emt 0:0:27]} 65. g5 {[%emt 0:0:7][%cal Bg4g5,Bg5g6,Bg6g7][%mdl 32]} h1=Q {[%emt 0:2:36]} 66. Rxh1+ {[%emt 0:0:5]} Kxh1 {[%emt 0:0:4]} 67. g6 {[%emt 0:1:19]} Kg1 {[%emt 0:0:31]} 68. g7 {[%emt 0:0:58]} Kf2 {[%emt 0:0:11]} 69. Nh4 {[%emt 0:0:58]} Rg3 {[%emt 0:1:54]} 70. f4 {[%emt 0:0:5] Weighted Error Value: White=0.11 (very precise) /Black=0.28 (precise)} 1-0

[Event "56th Biel GMT Classical 2023"]
[White "Yu,Yangyi"]
[Black "Navara,David"]
[Site "Biel"]
[Round "6.4"]
[Annotator "TA"]
[Result "1/2-1/2"]
[Date "2023.07.25"]
[WhiteElo "2735"]
[BlackElo "2689"]
[PlyCount "65"]
[TimeControl "60"]

{[%evp 16,65,0,0,0,0,0,0,0,0,0,0,0,0,0,0,0,0,0,0,0,0,0,0,0,0,0,0,0,0,0,0,0,0,0,0,0,0,0,0,4,0,4,0,0,0,0,0,0,0,0,0]} 1. e4 {[%emt 0:0:3]} e5 {[%emt 0:0:3]} 2. Nf3 {[%emt 0:0:8]} Nc6 {[%emt 0:0:4]} 3. Nc3 {[%emt 0:0:18]} Nf6 {[%emt 0:0:6]} 4. Bb5 {[%emt 0:0:9]} Nd4 {[%emt 0:0:6]} 5. Nxd4 {[%emt 0:0:17]} exd4 {[%emt 0:0:6]} 6. e5 {[%emt 0:0:5]} dxc3 {[%emt 0:0:6]} 7. exf6 {[%emt 0:0:5]} Qxf6 {[%emt 0:0:19]} 8. dxc3 {[%emt 0:0:4]} Bc5 {[%emt 0:8:44]} 9. Qe2+ {[%emt 0:0:8] The position is equal.} Qe7 {[%emt 0:1:42] C48: Four Knights: 4 Bb5, replies other than 4...Bb4.} 10. O-O {[%emt 0:0:17]} Qxe2 {[%emt 0:1:51]} 11. Bxe2 {[%emt 0:0:5]} d5 {[%emt 0:2:27]} 12. Re1 {[%emt 0:0:16]} Be6 {[%emt 0:1:43]} 13. Bd3 {[%emt 0:0:48]} O-O-O {[%emt 0:4:38]} 14. Bf4 {[%emt 0:0:18] [#]} Bd6 $146 {[%emt 0:3:11]} ({Predecessor:} 14... h6 15. Be5 Rhg8 16. Bh7 Rh8 17. Bd3 Rhg8 18. Bh7 Rh8 19. Bd3 {½-½ Radovanovic,N (2419)-Wagner,D (2584) Bundesliga 2122 2022 (4.8)} )15. Be5 {[%emt 0:1:17]} Bxe5 {[%emt 0:1:41]} 16. Rxe5 {[%emt 0:0:2]} Rde8 {[%emt 0:5:39]} 17. Rae1 {[%emt 0:0:31]} Kd7 {[%emt 0:7:32]} 18. f4 {[%emt 0:0:22] [#] Hoping for f5.} f6 {[%emt 0:6:11]} 19. R5e3 {[%emt 0:3:2]} g6 {[%emt 0:1:11]} 20. Kf2 {[%emt 0:8:22]} Bf7 {[%emt 0:1:28]} 21. g4 {[%emt 0:6:13][%cal Bg2g4,Bg4g5][%mdl 32]} Rxe3 {[%emt 0:4:49]} 22. Rxe3 $11 {[%emt 0:0:9][%mdl 4096] Endgame KRB-KRB} h5 {[%emt 0:0:54]} 23. g5 {[%emt 0:0:32]} f5 {[%emt 0:0:10]} 24. a3 {[%emt 0:0:41]} Kd6 {[%emt 0:7:24]} 25. Re5 {[%emt 0:0:52]} Re8 {[%emt 0:3:4]} 26. Rxe8 {[%emt 0:0:10]} Bxe8 {[%emt 0:0:3] KB-KB} 27. Ke3 {[%emt 0:0:15]} c5 {[%emt 0:0:8]} 28. h4 {[%emt 0:0:11]} a5 {[%emt 0:0:46]} 29. Be2 {[%emt 0:2:8]} Ba4 {[%emt 0:0:28]} 30. Kd2 {[%emt 0:1:9]} Bc6 {[%emt 0:0:17]} 31. Ke3 {[%emt 0:0:5]} Ba4 {[%emt 0:0:5]} 32. Kd2 {[%emt 0:0:3]} Bc6 {[%emt 0:0:4]} 33. Ke3 {[%emt 0:0:3] Not much happened in this game.   Weighted Error Value: White=0.00 (flawless) /Black=0.00 (flawless)} 1/2-1/2